[Event "2nd Bundesliga Nord 2024-25"]
[Site "Germany"]
[Date "2025.02.23"]
[Round "9.7"]
[White "Joachim, Sven"]
[Black "Pauly, Carlo"]
[Result "1-0"]
[Annotator "TA"]
[ECO "B30"]
[WhiteElo "2405"]
[BlackElo "2319"]
[PlyCount "87"]
[EventDate "2024.11.29"]
[EventType "team-tourn"]
[EventCountry "GER"]
[SourceTitle "playchess.com"]
[Source "ChessBase"]
[SourceQuality "1"]
[TimeControl "40/5400+30:1800+30"]

{[%evp 9,87,31,31,19,22,18,23,15,17,18,25,17,27,18,10,0,0,-49,-61,-60,-62,-52,-60,-63,-64,-83,-84,-81,-50,-56,-35,-57,84,-207,-212,-283,-124,-109,-123,-115,-66,-74,0,0,-10,-67,-25,-44,-8,-8,-8,-8,0,0,0,-37,-37,0,216,214,403,397,746,617,512,380,365,356,388,48,4714,4710,29976,29977,29978,29979,29983,29983,29989,29990]} 1. e4 {[%emt 0:00:05]} c5 {[%emt 0:00:07]} 2. Nf3 {[%emt 0:00:11]} Nc6 {[%emt 0:00:10]} 3. Bb5 {[%emt 0:00:20]} Nf6 {[%emt 0:00:08]} 4. Bxc6 {[%emt 0:00:33]} dxc6 {[%emt 0:00:06]} 5. d3 {[%emt 0:00:08]} Bg4 {[%emt 0:00:15]} 6. h3 {[%emt 0:00:52] B30: Sicilian: 2...Nc6 3 Bb5, lines without ...g6.} Bh5 {[%emt 0:00:08]} 7. Nbd2 {[%emt 0:02:21][%cal Bb1d2,Bd2f1,Bf1g3,Bg3h5][%mdl 32]} Nd7 {[%emt 0:00:26]} 8. Nf1 {[%emt 0:17:18] White has an edge.} e6 {[%emt 0:03:35]} 9. Ng3 {[%emt 0:01:06]} Bxf3 {[%emt 0:00:22]} 10. Qxf3 {[%emt 0:00:13]} Bd6 $146 {[%emt 0:00:22]} (10... g6 11. O-O Bg7 12. Qe2 e5 13. Be3 Qe7 14. Qd2 h6 15. Rab1 a5 16. a4 Nf8 {1-0 Schweitzer,W (2022)-Neumeier,K (2344) AUT-ch Jenbach 2009 (6)}) 11. O-O {[%emt 0:03:56]} h5 {[%emt 0:09:22]} 12. Nxh5 {[%emt 0:20:25]} Qh4 $1 {[%emt 0:01:18] Black sacrificed a pawn} 13. Bf4 {[%emt 0:01:55]} (13. Ng3 $11) 13... Be5 $1 $15 {[%emt 0:19:43]} 14. Bxe5 {[%emt 0:12:49]} Nxe5 {[%emt 0:00:20]} 15. Nxg7+ {[%emt 0:00:08]} Ke7 {[%emt 0:03:28]} 16. Qe3 {[%emt 0:01:40]} Nd7 {[%emt 0:03:23]} 17. Nf5+ {[%emt 0:21:35]} exf5 {[%emt 0:00:40]} 18. exf5+ {[%emt 0:00:05]} Kd6 {[%emt 0:08:38]} (18... Kf6 {with more complications.} 19. Rae1 Rae8 20. Qd2 Rhg8) 19. Qg3+ $1 {[%emt 0:02:33]} Ne5 {[%emt 0:03:13]} (19... Qxg3 {simplifies} 20. fxg3 a5 21. g4 b5) 20. Rae1 {[%emt 0:03:08]} Qf6 {[%emt 0:03:09] Successful Defense Black} (20... f6 $15 21. Qxh4 Rxh4) 21. f4 $2 {[%emt 0:04:11][%mdl 8192]} (21. b4 $16 {stays on course. Hoping for bxc5+.} b6 (21... Qxf5 $2 22. bxc5+ Kd5 23. f4 $18) (21... cxb4 $2 22. d4 $18) 22. bxc5+ bxc5 23. Qf4) 21... Nd7 $19 {[%emt 0:00:11]} 22. Qg5 {[%emt 0:00:17]} Rag8 {[%emt 0:06:59]} (22... Qd4+ $19 {has better winning chances.} 23. Kh2 Kc7 (23... Qxb2 $2 24. Qe7+ Kc7 25. Qxf7 $19)) 23. Qxf6+ $17 {[%emt 0:00:16]} Nxf6 {[%emt 0:00:04]} 24. Rf3 {[%emt 0:02:02]} Nd5 {[%emt 0:03:12]} (24... Rh5 $17 25. g4 Rxf5) 25. Kf2 {[%emt 0:01:13]} Re8 {[%emt 0:02:07]} (25... Rh4 $17 26. g4 Rgh8) 26. Rxe8 $11 {[%emt 0:00:22]} Rxe8 {[%emt 0:00:05][%mdl 4096] Endgame KRN-KR} 27. c3 {[%emt 0:02:41]} (27. g4 $11) 27... b5 {[%emt 0:00:54]} 28. g4 {[%emt 0:00:38]} a5 {[%emt 0:02:25]} 29. h4 {[%emt 0:00:34]} a4 {[%emt 0:00:19][%cal Oa4a3] aiming for ...a3!.} 30. a3 {[%emt 0:00:29]} b4 {[%emt 0:01:24]} 31. c4 {[%emt 0:00:23]} Nf6 {[%emt 0:06:26]} 32. g5 {[%emt 0:00:10]} Nh5 {[%emt 0:00:33]} 33. Re3 $1 {[%emt 0:00:29]} Rb8 {[%emt 0:08:29]} (33... Rh8 $11) 34. Kf3 $18 {[%emt 0:00:06]} bxa3 $2 {[%emt 0:00:06]} (34... Rh8) 35. bxa3 {[%emt 0:00:04]} Rb1 $2 {[%emt 0:00:31]} (35... Rg8 36. Re4 Rb8) 36. Kg4 {[%emt 0:01:05]} Ng7 {[%emt 0:00:13]} 37. Rg3 {[%emt 0:01:14] Inhibits Rg1.} Rh1 {[%emt 0:01:29]} 38. Rg2 {[%emt 0:01:15]} Kd7 {[%emt 0:04:39] [#]} 39. h5 $2 {[%emt 0:00:26]} ({White must play} 39. f6 $1 $18 {[%mdl 512]} Ne6 40. f5) 39... Rxh5 $2 {[%emt 0:06:34][%mdl 8192] [#]} (39... Nxh5 $14 40. Rb2 Ng7 41. Rb7+ Ke8 42. Rb8+ Kd7 43. Rb7+) 40. f6 $1 {[%emt 0:00:33]} Ne6 {[%emt 0:00:06]} 41. Kxh5 {[%emt 0:03:22] White mates.} Nxf4+ {[%emt 0:00:07]} 42. Kh6 {[%emt 0:00:07]} Nxg2 {[%emt 0:00:04]} 43. g6 {[%emt 0:00:34][%cal Bg5g6,Bg6f7][%mdl 32]} Ne3 {[%emt 0:04:50]} 44. gxf7 {[%emt 0:02:58] White used his chance.   Weighted Error Value: White=0.37/Black=0.71  Loses game:     	White=1     	Black=2      Missed win:     	White=1     	---        Mistake:       	White=2     	Black=6      Inaccurate:     	White=2     	Black=4      OK:         	White=8     	Black=11     Best:        	White=7     	Black=2      Strong:       	White=3     	Black=2} 1-0

[Event "2nd Bundesliga Nord 2024-25"]
[Site "Germany"]
[Date "2025.02.23"]
[Round "9.8"]
[White "Marcziter, Dmitrii"]
[Black "Breutigam, Martin"]
[Result "0-1"]
[Annotator "TA"]
[ECO "D36"]
[WhiteElo "2187"]
[BlackElo "2359"]
[PlyCount "78"]
[EventDate "2024.11.29"]
[EventType "team-tourn"]
[EventCountry "GER"]
[SourceTitle "playchess.com"]
[Source "ChessBase"]
[SourceQuality "1"]
[TimeControl "40/5400+30:1800+30"]

{[%evp 21,78,22,23,8,14,11,8,5,15,10,18,16,33,4,19,0,15,10,25,0,10,0,0,-12,-26,-25,-24,-39,0,0,10,3,15,-66,-25,-57,-33,-73,-66,-104,-16,-152,-104,-104,-99,-111,-57,-132,-83,-106,-100,-76,-81,-512,-515,-631,-639,-611,-604]} 1. d4 {[%emt 0:00:06]} Nf6 {[%emt 0:00:19]} 2. c4 {[%emt 0:00:11]} e6 {[%emt 0:00:21]} 3. Nc3 {[%emt 0:00:49]} d5 {[%emt 0:00:10]} 4. cxd5 {[%emt 0:00:26]} exd5 {[%emt 0:00:06]} 5. Bg5 {[%emt 0:00:06]} c6 {[%emt 0:00:29]} 6. e3 {[%emt 0:00:11]} Nbd7 {[%emt 0:01:20]} 7. Bd3 {[%emt 0:00:43]} Be7 {[%emt 0:00:45]} 8. Qc2 {[%emt 0:00:36]} h6 {[%emt 0:05:10]} 9. Bh4 {[%emt 0:01:15]} Nh5 {[%emt 0:00:42]} 10. Bxe7 {[%emt 0:00:38]} Qxe7 {[%emt 0:00:06]} 11. Nge2 {[%emt 0:00:32][%cal Bg1e2,Be2c1,Bc1b3][%mdl 32]} Nb6 {[%emt 0:02:54]} 12. O-O-O {[%emt 0:05:36] D36: Queen's Gambit Declined: Exchange Variation: Main line (5 Bg5 c6 6 Qc2).} Bd7 $1 {[%emt 0:02:33] 12...Bd7 scores better than 12...Be6.} 13. Kb1 {[%emt 0:00:32]} O-O-O {[%emt 0:01:56]} 14. Nc1 {[%emt 0:03:12] The position is equal.} g6 {[%emt 0:07:24]} 15. Rhe1 {[%emt 0:06:24]} Ng7 {[%emt 0:03:17]} 16. f3 {[%emt 0:00:53]} Kb8 {[%emt 0:06:47]} 17. Nb3 {[%emt 0:02:54]} Ka8 $146 {[%emt 0:07:27]} (17... Qd6 18. h3 Ne6 19. a4 Qb4 20. a5 Nc4 21. Na2 Qa4 22. Bxc4 dxc4 23. Nd2 Qxa5 24. Nxc4 {1-0 Chernyavsky,A (2339)-Hemant,S (2374) Hanoi IM 2023 (7)}) 18. Rc1 {[%emt 0:14:31]} (18. e4 Ne6 $14) 18... Qd6 {[%emt 0:08:00]} 19. h3 {[%emt 0:09:50]} Ne6 {[%emt 0:06:00]} 20. Ne2 {[%emt 0:02:16]} Rhe8 {[%emt 0:04:24]} 21. Rcd1 {[%emt 0:09:56]} Bc8 {[%emt 0:09:16]} 22. e4 {[%emt 0:06:02]} dxe4 {[%emt 0:04:14]} 23. fxe4 {[%emt 0:00:18]} Qh2 {[%emt 0:00:44]} 24. Rg1 {[%emt 0:04:32]} Qc7 {[%emt 0:05:39][%cal Of7f5]} 25. Rgf1 {[%emt 0:04:56]} f5 {[%emt 0:04:39]} 26. exf5 {[%emt 0:06:09]} gxf5 {[%emt 0:00:05]} 27. Nc3 {[%emt 0:00:50]} (27. Bxf5 $2 Nd5 28. Qd3 Nef4 29. Nxf4 Nxf4 $17) (27. Rxf5 $11 Qg7 28. Rf2) 27... f4 {[%emt 0:03:45][%csl Og2,Od4][%cal Oc7g7] White has weak pawns. Black attacks a weakness} (27... Nxd4 $2 28. Nxd4 f4 (28... Rxd4 $2 29. Nb5 $18) 29. Qf2 $18) 28. Qf2 {[%emt 0:06:05]} Rf8 {[%emt 0:01:19]} 29. Rfe1 {[%emt 0:01:51]} Qg7 {[%emt 0:01:24]} 30. Re4 {[%emt 0:01:16]} Qg3 {[%emt 0:02:38]} ({Better is} 30... f3 $1 $17 {[%cal Rf3g2]} 31. gxf3 Nf4) 31. Qe2 {[%emt 0:04:34] [#]} (31. Qxg3 $11 {keeps the balance.} fxg3 32. Ne2) 31... Ng5 {[%emt 0:00:38] Black is more active.} (31... f3 $142 $1 {[%cal Rf3e2]} 32. gxf3 Nf4 (32... Rxf3 33. Qd2 $17)) 32. Re7 {[%emt 0:00:17]} f3 {[%emt 0:00:59]} 33. gxf3 {[%emt 0:00:08]} Rxf3 {[%emt 0:00:53]} (33... Nxf3 $17 34. Be4 Ng5 (34... Qxh3 35. Ka1 $17) (34... Bxh3 35. Rxb7 Kxb7 36. Qa6+ Kxa6 37. Nc5+ Ka5 38. Nb7+ Ka6 39. Nc5+ Ka5 40. Nb7+ Ka6 41. Nc5+ $11)) 34. Ka1 {[%emt 0:04:54]} (34. Nc5 $15) 34... Qxh3 {[%emt 0:01:49]} (34... Bxh3 35. Nc5 Bc8 36. Re8 Rxe8 (36... Rxd4 37. N3a4 $17) 37. Qxe8 $17) (34... Nxh3 $142 {White must now prevent ...Nf4.} 35. Bb1 Nf4) 35. Bb1 {[%emt 0:02:26]} Rxc3 {[%emt 0:01:49]} 36. bxc3 {[%emt 0:00:09] [#] and Rd3 would now be decisive} Bg4 $1 {[%emt 0:00:11]} ({Much weaker is} 36... Qxc3+ 37. Qb2 Qg3 38. Qc1 $11) 37. Qe1 {[%emt 0:01:32][%mdl 8192]} Bxd1 $19 {[%emt 0:00:27] Black is clearly winning.} 38. Re8 {[%emt 0:00:05]} Rxe8 {[%emt 0:00:54]} 39. Qxe8+ {[%emt 0:00:03]} Qc8 {[%emt 0:00:08] Weighted Error Value: White=0.60/Black=0.19 (very precise)   Loses game:     	White=1     	---        Mistake:       	White=3     	Black=4      Inaccurate:     	White=4     	Black=2      OK:         	White=4     	Black=10     Best:        	---       	Black=2      Strong:       	---       	Black=1} 0-1

[Event "2nd Bundesliga Nord 2024-25"]
[Site "Germany"]
[Date "2025.02.23"]
[Round "9.10"]
[White "Gaponenko, Inna"]
[Black "Kuzubov, Yuriy"]
[Result "0-1"]
[Annotator "TA"]
[ECO "C42"]
[WhiteElo "2341"]
[BlackElo "2597"]
[PlyCount "124"]
[EventDate "2024.11.29"]
[EventType "team-tourn"]
[EventCountry "GER"]
[SourceTitle "playchess.com"]
[Source "ChessBase"]
[SourceQuality "1"]
[TimeControl "40/5400+30:1800+30"]

{[%evp 14,124,11,0,31,25,27,18,34,32,50,12,20,20,31,25,23,20,31,23,42,-10,2,-9,0,0,0,0,0,4,0,-4,-10,-36,-33,-33,-35,-34,-35,-34,-34,-34,-33,-31,-31,-45,-45,-45,-45,-45,-21,-29,-28,-32,-35,-29,-29,-44,-36,-77,-59,-82,-66,-152,-152,-148,-150,-234,-227,-234,-234,-233,-212,-306,-306,-320,-192,-192,-83,-295,-283,-296,-260,-299,-270,-278,-295,-300,-290,-214,-217,-304,-302,-302,-302,-288,-292,-798,-766,-1250,-1245,-1052,-1019,-848,-852,-816,-780,-2041,-1339,-29975,-29976,-29989,-29990]} 1. e4 {[%emt 0:00:06]} e5 {[%emt 0:00:09]} 2. Nf3 {[%emt 0:00:07]} Nf6 {[%emt 0:00:05]} 3. Nxe5 {[%emt 0:08:16]} d6 {[%emt 0:00:19]} 4. Nf3 {[%emt 0:00:04]} Nxe4 {[%emt 0:00:05]} 5. Qe2 {[%emt 0:02:58]} Qe7 {[%emt 0:00:10]} 6. d3 {[%emt 0:00:03]} Nf6 {[%emt 0:00:04]} 7. Bg5 {[%emt 0:00:05]} Qxe2+ {[%emt 0:00:14]} 8. Bxe2 {[%emt 0:00:04]} Nbd7 {[%emt 0:00:05] C42: Petroff Defence: 3 Nxe5 and unusual White 3rd moves.} 9. O-O {[%emt 0:22:28]} h6 {[%emt 0:00:18]} 10. Bd2 {[%emt 0:00:04]} g6 {[%emt 0:02:02] The position is equal.} 11. Re1 {[%emt 0:12:00]} Bg7 {[%emt 0:00:38]} 12. c4 $146 {[%emt 0:00:04]} ({Predecessor:} 12. Bf1+ Kd8 13. Nc3 Nb6 14. g3 Nfd5 15. Nxd5 Nxd5 16. c3 Be6 17. Nh4 Kd7 18. Ng2 Rhe8 19. Nf4 Nxf4 20. Bxf4 a5 21. d4 {½-½ Bobak,M-Weglarz,L (2400) EU-ch Union SCIPT 1999 (7)}) 12... O-O {[%emt 0:01:14]} 13. Nc3 {[%emt 0:00:07]} a6 {[%emt 0:00:35]} 14. d4 {[%emt 0:06:59]} Nb6 {[%emt 1:31:32]} 15. a4 {[%emt 0:11:19][%cal Ba2a4,Ba4a5][%mdl 32]} Bg4 {[%emt 0:00:00]} 16. a5 {[%emt 0:06:50]} Bxf3 {[%emt 0:00:00]} 17. Bxf3 {[%emt 0:00:10]} (17. gxf3 $14 Nc8 18. Bf1) 17... Nxc4 $11 {[%emt 0:00:00]} 18. Bc1 {[%emt 0:00:04][%cal Ob2b3] A strong pair of Bishops.} Rfe8 {[%emt 0:00:00]} 19. Rd1 {[%emt 0:00:11][%cal Ob2b3] b3! would now be deadly.} (19. Rxe8+ Rxe8 20. Kf1 d5 $15) 19... d5 {[%emt 0:00:00]} 20. Nxd5 {[%emt 0:00:31]} Nxd5 {[%emt 0:00:00]} 21. Bxd5 {[%emt 0:00:04]} Nd6 {[%emt 0:00:00]} 22. Bf4 {[%emt 0:06:43]} Rad8 {[%emt 0:00:00]} 23. Bxd6 {[%emt 0:00:08]} Rxd6 {[%emt 0:00:00]} 24. Bxb7 {[%emt 0:00:03]} Rb8 {[%emt 0:00:00]} 25. Bf3 {[%emt 0:00:30]} Bxd4 {[%emt 0:00:00]} 26. Ra2 {[%emt 0:21:56]} c5 {[%emt 0:00:00]} 27. Kf1 {[%emt 0:00:06]} Rb4 {[%emt 0:00:00]} (27... Rxb2 $2 28. Rxb2 Rd7 29. Rb6 $18) 28. Rd2 {[%emt 0:00:10]} Kf8 {[%emt 0:00:00]} 29. Ke2 {[%emt 0:02:11]} Ke7 {[%emt 0:00:00]} 30. Kf1 {[%emt 0:00:34]} f5 {[%emt 0:00:00]} 31. h3 {[%emt 0:00:16]} h5 {[%emt 0:00:00]} 32. Be2 {[%emt 0:00:02]} c4 {[%emt 0:00:00]} 33. g3 $1 {[%emt 0:01:05]} Bf6 {[%emt 0:00:00]} 34. Rc2 {[%emt 0:00:32]} Rc6 {[%emt 0:00:00]} 35. Ke1 {[%emt 0:00:35]} Rc5 $36 {[%emt 0:00:00][%mdl 2048] Black has the initiative.} 36. Kd1 {[%emt 0:00:26]} h4 {[%emt 0:00:00]} 37. g4 {[%emt 0:00:37]} Rd5+ {[%emt 0:00:00]} 38. Rd2 {[%emt 0:00:26]} (38. Ke1 $15) 38... Kd6 $17 {[%emt 0:00:00] Black is much more active. The white rooks are passive.} 39. gxf5 {[%emt 0:00:19]} gxf5 {[%emt 0:00:00]} (39... Rxb2 40. Raxb2 Bxb2 41. Bxc4 (41. fxg6 Kc5 $18) 41... Rxd2+ 42. Kxd2 gxf5 43. Bxa6 $16) 40. Bf1 {[%emt 0:00:41]} (40. Rxd5+ $17 {is the only way for White.} Kxd5 41. Kc2) 40... Rxd2+ $19 {[%emt 0:00:00]} (40... Rxb2 41. Raxb2 Bxb2 42. Bxc4 Rxd2+ 43. Kxd2 $16) (40... Bxb2 41. Bxc4 Rxc4 42. Raxb2 $11) 41. Kxd2 {[%emt 0:30:01][%mdl 4096] Endgame KRB-KRB} Kc5 {[%emt 0:00:00]} (41... Rxb2+ 42. Rxb2 c3+ 43. Kc2 cxb2 44. Bxa6 $16) (41... Bxb2 42. Bxc4 Rxc4 43. Rxb2 $11) 42. Kc1 {[%emt 0:00:00]} Kb5 {[%emt 0:00:00]} 43. Be2 {[%emt 0:00:00]} (43. Bg2 $142) 43... Rb3 {[%emt 0:00:00]} 44. f3 {[%emt 0:00:00]} Re3 {[%emt 0:00:00]} 45. Kd2 {[%emt 0:00:00]} Bg5 {[%emt 0:00:00]} (45... Re6 $19 {aiming for ...Kb4.} 46. f4 Bd4) 46. Ke1 $2 {[%emt 0:00:00] Loses the game.} (46. f4 $17 Bxf4 (46... Rxh3 $2 47. fxg5 Rb3 48. g6 $18) 47. Bxc4+ Kb4 (47... Kxc4 48. Ra4+ Kb3 49. Rxf4 $17) 48. Kc2) 46... Rb3 {[%emt 0:00:00]} 47. Bd1 {[%emt 0:00:00] [#]} Kb4 {[%emt 0:00:00][%cal Og5f6]} 48. Ke2 {[%emt 0:00:00]} (48. Bxb3 $2 Kxb3 49. Ra1 Kxb2 $19) 48... Re3+ {[%emt 0:00:00]} 49. Kf2 {[%emt 0:00:00]} Rd3 {[%emt 0:00:00]} 50. Ke1 {[%emt 0:00:00]} Bd2+ {[%emt 0:01:40]} 51. Ke2 {[%emt 0:00:00][%cal Ob2b3]} Bc1 {[%emt 0:00:09]} 52. Ra4+ {[%emt 0:00:00]} (52. Ke1 $142) 52... Kc5 {[%emt 0:00:51]} 53. Ra2 {[%emt 0:02:45]} Kd4 {[%emt 0:02:37]} 54. Ke1 {[%emt 0:01:09]} Bd2+ {[%emt 0:02:11]} 55. Ke2 $2 {[%emt 0:03:36]} (55. Kf1 Bb4 56. Ra1) 55... Bb4 {[%emt 0:02:23] [#] ( -> ...Rd2+)} 56. Ba4 {[%emt 0:00:01]} Rd2+ {[%emt 0:01:28]} ({Weaker is} 56... Bxa5 57. Bd7 Rd2+ 58. Kf1 $11) 57. Kf1 {[%emt 0:00:01]} Ke3 {[%emt 0:04:38][%cal Oc4c3]} ({Not} 57... Bxa5 58. Bd7 Ke3 (58... Rd1+ 59. Kf2 $17) 59. Bxf5 $17) 58. Ra1 {[%emt 0:00:31]} Rf2+ {[%emt 0:00:46]} (58... Bxa5 59. Re1+ Kxf3 60. Re5 $15) 59. Kg1 {[%emt 0:00:04]} Rxb2 {[%emt 0:00:06]} 60. Bd7 {[%emt 0:00:16]} Kxf3 {[%emt 0:01:11]} 61. Bxf5 {[%emt 0:00:50]} Bc5+ {[%emt 0:00:29]} 62. Kh1 {[%emt 0:00:35]} Kg3 {[%emt 0:00:11] Weighted Error Value: White=0.51/Black=0.07 (flawless)   Loses game:     	White=1     	---        Mistake:       	White=6     	Black=1      Inaccurate:     	White=4     	Black=1      OK:         	White=19    	Black=29     Best:        	White=2     	Black=4      Strong:       	White=1     	---} 0-1

[Event "2nd Bundesliga Nord 2024-25"]
[Site "Germany"]
[Date "2025.02.23"]
[Round "9.11"]
[White "Onyshchuk, Volodymyr"]
[Black "Schlecht, Daniel"]
[Result "1-0"]
[Annotator "TA"]
[ECO "A07"]
[WhiteElo "2610"]
[BlackElo "2372"]
[PlyCount "55"]
[EventDate "2024.11.29"]
[EventType "team-tourn"]
[EventCountry "GER"]
[SourceTitle "playchess.com"]
[Source "ChessBase"]
[SourceQuality "1"]
[TimeControl "40/5400+30:1800+30"]

{[%evp 9,55,-8,-16,-33,-24,-26,-21,-38,-20,-46,-40,-52,-36,-45,-17,-27,-29,-24,-25,-28,-21,-27,-28,-44,-22,-45,-27,-51,6,-36,292,279,275,266,400,393,1022,1004,1146,1106,1357,229,1308,1258,29995,29996,29996,29997]} 1. Nf3 {[%emt 0:00:17]} d5 {[%emt 0:00:05]} 2. g3 {[%emt 0:00:17]} Nf6 {[%emt 0:00:07]} 3. Bg2 {[%emt 0:00:07]} e6 {[%emt 0:00:06]} 4. O-O {[%emt 0:00:22]} Be7 {[%emt 0:00:06]} 5. d3 {[%emt 0:01:10]} O-O {[%emt 0:00:22]} 6. Qe1 {[%emt 0:11:58] A07: Réti Opening: New York and Capablanca Systems.} c5 {[%emt 0:01:39]} 7. e4 {[%emt 0:00:11]} Nc6 {[%emt 0:00:18]} 8. e5 {[%emt 0:04:25] The position is equal.} Nd7 {[%emt 0:00:14]} 9. h4 {[%emt 0:00:22]} b5 {[%emt 0:01:29]} 10. Bf4 {[%emt 0:00:21]} Bb7 {[%emt 0:04:15]} 11. Nbd2 {[%emt 0:01:45][%cal Bb1d2,Bd2f1,Bf1e3,Be3g4,Bg4f6][%mdl 32]} Nb4 {[%emt 0:09:51]} 12. Qd1 {[%emt 0:05:55]} Qc7 {[%emt 0:01:29]} 13. Re1 {[%emt 0:02:32]} Rfc8 {[%emt 0:02:38]} 14. a3 {[%emt 0:11:08]} Nc6 {[%emt 0:00:21]} 15. Nf1 {[%emt 0:00:33]} a5 $146 {[%emt 0:02:16]} ({Predecessor:} 15... Qd8 16. h5 h6 17. Qd2 a5 18. g4 Ra6 19. Re2 a4 20. N1h2 b4 21. Kh1 bxa3 22. bxa3 Rb6 23. Rg1 c4 {1-0 Amin,B (2682)-Yakubboev,N (2617) Julius Baer Rapid Div 2 L 2023 (4.1)}) 16. Ne3 {[%emt 0:01:24][%cal Oe3d5]} Qd8 {[%emt 0:00:12]} ({Stronger than} 16... Ncxe5 17. Nxe5 Nxe5 18. c4 $16 (18. Ng4 f6 $16)) 17. Ng4 {[%emt 0:02:53]} a4 {[%emt 0:05:39]} 18. c3 {[%emt 0:12:49]} Nb6 {[%emt 0:14:22]} (18... Na5 $15) 19. Ng5 {[%emt 0:02:16]} Qe8 $2 {[%emt 0:16:29][%mdl 8192] [#] A mistake that costs the game.} (19... Ba6 $15 {stays ahead.}) 20. Nf6+ $1 $18 {[%emt 0:20:03][%mdl 512]} gxf6 {[%emt 0:04:03]} 21. exf6 {[%emt 0:00:08] Qh5 would kill now.} Bxf6 {[%emt 0:01:00]} (21... Nd7 $142) 22. Qh5 {[%emt 0:00:04]} h6 {[%emt 0:21:28]} (22... e5 23. Qxh7+ (23. Nxh7 Bg7 $15) 23... Kf8) 23. Qxh6 {[%emt 0:01:33] Strongly threatening Qh7+.} Bxg5 {[%emt 0:00:06]} 24. Qxg5+ {[%emt 0:00:06]} (24. Bxg5 Qf8 25. Qh5 Qg7 $19) 24... Kh7 {[%emt 0:00:11]} 25. Qh6+ $40 {[%emt 0:05:13][%mdl 128] White has strong attack.} Kg8 {[%emt 0:00:07] [#]} 26. Re5 $1 {[%emt 0:01:03][%mdl 512]} Nxe5 {[%emt 0:06:10]} (26... f6 27. Rh5) 27. Bxe5 {[%emt 0:00:06][%csl Ge5][%cal Rh6h8]} f6 {[%emt 0:08:57]} 28. Bxf6 {[%emt 0:00:30] Weighted Error Value: White=0.45/Black=1.08  Loses game:     	---       	Black=1      Mistake:       	---       	Black=3      Inaccurate:     	White=2     	Black=2      OK:         	White=4     	Black=6      Best:        	White=2     	Black=1      Brilliant:      	White=1     	---} 1-0